{"text_format":"1","workbook":"xlsx","n_sheets":6,"sheets":["聴取印刷元データ","印刷用シート","手書き用シート","入力用","退院支援プラン","ケアプラン"],"not_rendered":{"charts":0,"images":0,"macros":1,"external_links":0,"defined_names":6,"comments":0,"pivot_tables":0},"unopened":[],"bounds":{"document_bytes":16777216,"sheet_cells":100000,"rows_first":2000,"rows_last":500,"rows_between":2000,"halvings":0,"cell_chars":16384,"cell_head_chars":4096},"cells_cut":0,"cells_raw":0,"read":"whole","date_system":"1900"}

{"sheet":"聴取印刷元データ","index":0,"n_rows":60,"n_cols":14,"rows_kept":60,"cut":false,"hidden":true,"merged":[[2,1,3,7],[4,2,4,7],[14,1,15,1],[14,4,14,6],[14,7,16,7],[15,4,15,6],[16,4,16,6],[23,12,25,12],[24,3,25,7],[24,9,25,9],[59,3,59,7],[17,4,17,6],[17,7,22,7],[18,4,18,6],[19,4,19,6],[20,4,20,6],[21,4,21,6],[22,4,22,6]]}
[null,"退院支援アセスメントチェックシート",null,"　　　　　　　　　　　様　",null,"ご本人　・　ご家族",null,"年　　　月　　　日"]
[]
[null,"以下の質問への解答にご協力をお願いいたします\n患者様・ご家族のニーズをしっかりと把握した上で退院後の生活に向けた具体的支援の参考にさせていただきます"]
[]
[null,"項目","チェックもしくは具体的記載をお願いいたします"]
[null,"□病気や症状について主治医から説明を受けていますか",null,"受けている",null,"受けたが十分理解していない",null,"受けていない",2,{"$f":"IF(I6>=2,$N6,\"\")","v":"病気や治療についての理解度・受け入れの確認と援助"},null,"疾患管理",1,"病気や治療についての理解度・受け入れの確認と援助"]
[null,"□過去に病気について心理教育を受けたことがありますか",null,"受けたことがある",null,"あるが十分理解していない",null,"受けたことがない",2,"心理教育",null,null,2,"心理教育"]
[null,"□病気の治療や副作用などについて理解されていますか",null,"理解している",null,"理解したが十分ではない",null,"理解できていない",2,"病気の治療、副作用についての説明・指導",null,null,3,"病気の治療、副作用についての説明・指導"]
[null,"□症状が出現した場合の対処方法は理解されていますか",null,"理解している",null,"理解したが十分ではない",null,"理解できていない",2,"症状への対処説明・指導",null,null,4,"症状への対処説明・指導"]
[null,"□過去に危機管理プランを作成したことがありますか\n　　（クライシスプラン・元気回復プラン・ハッピーライフプランなど）",null,"ある（活用している）",null,"ある（活用していない）",null,"作成したことがない",2,"クライシスプランの作成、修正",null,"相談・緊急時の対処",5,"クライシスプランの作成、修正"]
[null,"□病気の調子が悪い時の対処方法は決まっていますか",null,"決まっている（効果あり）",null,"決まっている（少ない効果）",null,"どうすればよいかわからない",2,"状態悪化時の対処方法指導",null,null,6,"状態悪化時の対処方法指導"]
[null,"□病気の症状で困った時の相談窓口は決まっていますか",null,"決まっている",null,"はっきりしていない",null,"どうすればよいかわからない",2,"相談先の確認と相談方法の指導",null,null,7,"相談先の確認と相談方法の指導"]
[null,"□急激に調子を崩した時の緊急連絡先は決まっていますか",null,"決まっている",null,"はっきりしていない",null,"どうすればよいかわからない",2,"緊急連絡先の設定と練習",null,null,8,"緊急連絡先の設定と練習"]
[null,"□これまで利用されていたサービスはありますか",null,"ある（現在活用している）",null,"ある（現在活用していない)",null,"ない",2,{"$f":"IF(I14=1,\"サービス利用あり\",IF(I14=2,\"以前サービスを利用していたが現在はなし\",\"サービスを利用したことがない\"))","v":"以前サービスを利用していたが現在はなし"},null,"サービス"]
[null,"□これまでにサービス利用をされていた場合\n　具体的に利用されていたサービス",null,"デイケア・院外作業  ","担当者（　　　　　　　　　　　　　　）",null,null,"※デイサービス・ショートステイ・救護施設・ケアマネージャーなどその他利用されていたサービス",false,{"$f":"IF($I15,$D15,\"\")","v":""},{"$f":"IF($I15,$E15,\"\")","v":""},null,null,"記入式"]
[null,null,null,"地域生活支援センター                          ","担当者（　　　　　　　　　　　　　　）",null,null,null,false,{"$f":"IF($I16,$D16,\"\")","v":""},{"$f":"IF($I16,$E16,\"\")","v":""}]
[null,null,null,"地域生活支援相談                             ","担当者（　　　　　　　　　　　　　　）",null,null,null,false,"",""]
[null,null,null,"訪問看護                       ","担当者（　　　　　　　　　　　　　　）",null,null,"施設名（　　　　）担当者（　　　　）",false,"",""]
[null,null,null,"ヘルパー                            ","担当者（　　　　　　　　　　　　　　）",null,null,null,false,"",""]
[null,null,null,"保健所                             ","担当者（　　　　　　　　　　　　　　）",null,null,null,false,"",""]
[null,null,null,"グループホーム                             ","担当者（　　　　　　　　　　　　　　）",null,null,null,false,"",""]
[null,null,null,"市町村福祉・生活保護                            ","担当者（　　　　　　　　　　　　　　）",null,null,null,false,"",""]
[null,null,null,"病院医療相談                           ","担当者（　　　　　　　　　　　　　　）",null,null,null,false,"",""]
[null,"□退院後利用を希望されるサービスはありますか",null,"ない（必要性なし）",null,"ある（調整不用）",null,"ある（調整必要）",2,{"$f":"IF(I24>=2,$N24,\"\")","v":"サービス利用手続きの相談"},{"$f":"IF($I60,$H18,\"\")","v":"施設名（　　　　）担当者（　　　　）"},null,9,"サービス利用手続きの相談"]
[null,"□具体的に利用を希望するサービス",null,null,null,null,null,null,null,{"$f":"IF(I24>=2,$D25,\"\")","v":0},null,null,null,"福祉・医療サービスについての情報提供・利用イメージ作り・相談"]
[null,null,null,null,null,null,null,null,null,null,null,null,null,"サービス利用にあたっての地域スタッフへの情報提供（ケア会議、連携手帳など）"]
[null,"□退院後お薬を忘れずに飲むことができますか",null,"できる",null,"できるが不安",null,"できない",2,{"$f":"IF(I27>=2,\"服薬自己管理に不安がある\",\"\")","v":"服薬自己管理に不安がある"},null,"服薬",10,"服薬自己管理訓練"]
[null,"□退院後お薬の管理は誰が行ないますか",null,"自分（不安なし)",null,"家族などのサポート",null,"自分（不安あり・できない）",2,{"$f":"IF(I28=2,\"家族などのサポートで服薬管理\",\"自分で服薬管理\")","v":"家族などのサポートで服薬管理"},null,null,11,"＜記入式＞"]
[null,"□お薬を管理する訓練が必要ですか",null,"必要なし",null,"必要（協力者不用）",null,"必要（協力者必要）",2,{"$f":"IF(I29>=2,$N27,\"\")","v":"服薬自己管理訓練"},null,null,13,"薬剤情報提供・指導"]
[null,"□お薬について確認したいことはありますか",null,"ない",null,"ある（主治医の説明）",null,"ある（薬剤師の説明）",2,{"$f":"IF(I30=2,\"主治医から薬剤説明希望\",IF(I30=3,\"薬剤師から説明希望\",\"\"))","v":"主治医から薬剤説明希望"}]
[null,"□退院先の調整が必要ですか",null,"必要なし（自宅・施設）",null,"必要（自宅・アパート・施設）",null,"必要（決まっていない）",2,{"$f":"IF(I31>=2,$N31,\"\")","v":"退院先の意向決定"},null,"住居",14,"退院先の意向決定"]
[null,"□馴染みのある退院先ですか？\n退院後の生活イメージはありますか？",null,"必要なし",null,"必要（協力不用）",null,"必要（協力必要）",2,"退院先についてのイメージ作り",null,null,15,"退院先についてのイメージ作り"]
[null,"□退院にむけて掃除や整理など自宅環境を整える必要がありますか",null,"必要なし",null,"必要（協力不用）",null,"必要（協力必要）",2,"退院先確保の準備",null,null,16,"退院先確保の準備"]
[null,"□退院先地域での土地勘や買い物、公共サービス、交通手段などに不安はありませんか？",null,"必要なし",null,"必要（協力不用）",null,"必要（協力必要）",2,"ライフラインの利用練習",null,null,17,"ライフラインの利用練習"]
[null,"□生活する場所に布団や食器などの生活用品や日用品はそろっていますか？",null,"必要なし",null,"必要（協力不用）",null,"必要（協力必要）",2,"生活用品の準備",null,null,18,"生活用品の準備"]
[null,"□ご家族など身近な人との関係調整が必要ですか",null,"必要なし",null,"必要（協力不用）",null,"必要（協力必要）",2,"本人・家族との関係調整",null,"家族調整",19,"本人・家族との関係調整"]
[null,"□ご家族など身近な人は病気について理解していますか",null,"理解している",null,"理解したが十分ではない",null,"理解できていない",2,"疾病教育（病気に対する理解、）",null,null,20,"疾病教育（病気に対する理解、）"]
[null,"□ご家族など身近な人は症状への対応について理解していますか",null,"理解している",null,"理解したが十分ではない",null,"理解できていない",2,"疾病教育（症状に対する理解、対応など）",null,null,null,"疾病教育（症状に対する理解、対応など）"]
[null,"□ご家族など身近な人は家族教室に参加されたことがありますか",null,"参加し理解している",null,"参加したが理解は不十分",null,"参加したことがない",2,"情報提供（家族教室、相談先など）",null,null,21,"情報提供（家族教室、相談先など）"]
[null,"□退院にむけた外出・外泊に協力できる人はいますか",null,"いる（家族など）",null,"いない（自分でいける）",null,"いない（自分でいけない）",2,"外出泊の援助",null,null,22,"外出泊の援助"]
[null,"□他者との対人関係における調整が必要ですか",null,"必要なし",null,"必要（協力不用）",null,"必要（協力必要）",2,"対人関係指導",null,"対人関係",23,"対人関係指導"]
[null,"□他者との対人関係を良好に保つための訓練が必要ですか",null,"必要なし",null,"必要（協力不用）",null,"必要（協力必要）",2,"SST",null,null,24,"SST"]
[null,"□退院先での対人関係に不安はありませんか？",null,"ない",null,"わからない",null,"不安がる",2,"退院先での活動・交流の場でのイメージ作り",null,null,25,"退院先での活動・交流の場でのイメージ作り"]
[null,"□退院後の食生活は自立されていますか",null,"自分で食べれる",null,"介助が必要",null,"食べれない",2,"退院後の食事調達先の確認と調整",null,"食事",26,"退院後の食事調達先の確認と調整"]
[null,"□退院後の食事は主に誰が準備しますか",null,"自炊",null,"家族・外食・弁当",null,"準備ができない",2,"可能な食事調達方法の利用指導",null,null,27,"可能な食事調達方法の利用指導"]
[null,"□退院にむけて自炊のための料理訓練が必要ですか",null,"必要なし",null,"必要（協力不用）",null,"必要（協力必要）",2,"料理グループ",null,null,28,"料理グループ"]
[null,"□退院後の生活のために過食・肥満・糖尿病・高血圧症など身体疾患に関する栄養指導が必要ですか",null,"身体疾患がない",null,"身体疾患はあるが栄養管理ができている",null,"栄養指導が必要",2,"栄養指導",null,null,29,"栄養指導"]
[null,"□洗面・入浴・洗濯・掃除などの清潔行動は保てていますか",null,"保てている",null,"手伝いがあればできる",null,"保てていない",2,"清潔行動の指導（入浴、洗面、洗濯、清掃、ゴミ出しなど）",null,"清潔",30,"清潔行動の指導（入浴、洗面、洗濯、清掃、ゴミ出しなど）"]
[null,"□退院後の生活先での入浴、洗濯、ゴミ出などに不安はありませんか？",null,"できている",null,"家族が行なう",null,"できていない",2,"退院先での清潔行動のイメージ作り",null,null,31,"退院先での清潔行動のイメージ作り"]
[null,"□退院先の地域などに不安はありませんか？",null,"ない",null,"わからない",null,"不安がある",2,"地域受け入れ状況の確認と調整",null,"地域",32,"地域受け入れ状況の確認と調整"]
[null,"□退院先地域に手助けをしてくれる人はいますか？",null,"地域に支援者がいる",null,"わからない",null,"地域で孤立している",2,"インフォーマルな支援の確認",null,null,33,"インフォーマルな支援の確認"]
[null,"□退院後、日中の過ごし方は決まっていますか",null,"決まっている（通所あり）",null,"決まっている（通所なし）",null,"決まっていない",2,{"$f":"IF(I52>=2,$N54,\"\")","v":"一日の過ごし方の確認と指導"},null,null,null,"その他"]
[null,"□退院後の施設利用（デイケア・地域生活支援センター・就労支援施設・グループホームなど）見学が必要ですか",null,"必要なし",null,"必要（協力不用）",null,"必要（協力必要）",2,{"$f":"IF(I53>=2,$N53,\"\")","v":"活動・就労に関する情報提供"},null,"活動・就労",34,"活動・就労に関する情報提供"]
[null,"□退院後の生活費の問題はありますか",null,"ない",null,"わからない",null,"ある",2,{"$f":"IF(I54>=2,$N55,\"\")","v":"退院後の生活費試算・イメージ作り"},null,null,35,"一日の過ごし方の確認と指導"]
[null,"□障害年金や生活保護などを受けていますか",null,"受けている（生保・障害年金）",null,"わからない",null,"受けていない",2,{"$f":"IF(I55=1,\"生活保護・年金受給\",IF(I55=2,\"生活保護・年金など受給状況不明\",\"年金・生保なし\"))","v":"生活保護・年金など受給状況不明"},null,"経済",36,"退院後の生活費試算・イメージ作り"]
[null,"□障害年金や生活保護の情報提供を希望されますか",null,"希望する",null,"わからない",null,"希望しない",2,{"$f":"IF(I56<=2,$N57,\"\")","v":"障害年金、生活保護などの情報提供"},null,null,37]
[null,"□お金の使い方はうまくできていますか",null,"できている",null,"サポートが必要",null,"できていない",2,{"$f":"IF(I57>=2,\"金銭管理にサポートが必要\",\"\")","v":"金銭管理にサポートが必要"},null,null,38,"障害年金、生活保護などの情報提供"]
[null,"□退院後のお金の管理は誰が行ないますか",null,"自分で管理",null,"家族が管理",null,"管理できない",2,{"$f":"IF(I58=1,\"金銭自己管理で問題なし\",IF(I58=2,\"家族などのサポートで金銭管理\",\"サポート者がおらず管理にも不安がある\"))","v":"家族などのサポートで金銭管理"},null,null,39,"金銭管理自己訓練"]
[null,"□その他、気になることや確認したいことがあれば記載してください",null,null,null,null,null,null,null,null,null,null,null,"その他"]
[null,null,null,null,null,null,null,null,true,null,null,null,40,"＜記入式＞"]

{"sheet":"印刷用シート","index":1,"n_rows":59,"n_cols":7,"rows_kept":59,"cut":false,"hidden":false,"merged":[[24,2,25,6],[58,1,58,6],[17,3,17,5],[17,6,22,6],[18,3,18,5],[19,3,19,5],[20,3,20,5],[21,3,21,5],[22,3,22,5],[2,0,3,6],[4,1,4,6],[14,0,15,0],[14,3,14,5],[14,6,16,6],[15,3,15,5],[16,3,16,5]]}
["退院支援アセスメントチェックシート",null,"　　　　　　　　　　　様　",null,"ご本人　・　ご家族",null,"年　　　月　　　日"]
[null,null,null,null,"（聴取者）"]
["以下の質問への解答にご協力をお願いいたします\n患者様・ご家族のニーズをしっかりと把握した上で退院後の生活に向けた具体的支援の参考にさせていただきます"]
[]
["項目","チェックもしくは具体的な記載をお願いいたします"]
["□病気や症状について主治医から説明を受けていますか",null,"受けている",null,"受けたが十分理解していない",null,"受けていない"]
["□過去に病気について心理教育を受けたことがありますか",null,"受けたことがある",null,"あるが十分理解していない",null,"受けたことがない"]
["□病気の治療や副作用などについて理解されていますか",null,"理解している",null,"理解したが十分ではない",null,"理解できていない"]
["□症状が出現した場合の対処方法は理解されていますか",null,"理解している",null,"理解したが十分ではない",null,"理解できていない"]
["□過去に危機管理プランを作成したことがありますか\n　　（クライシスプラン・元気回復プラン・ハッピーライフプランなど）",null,"ある（活用している）",null,"ある（活用していない）",null,"作成したことがない"]
["□病気の調子が悪い時の対処方法は決まっていますか",null,"決まっている（効果あり）",null,"決まっている（少ない効果）",null,"どうすればよいかわからない"]
["□病気の症状で困った時の相談窓口は決まっていますか",null,"決まっている",null,"はっきりしていない",null,"どうすればよいかわからない"]
["□急激に調子を崩した時の緊急連絡先は決まっていますか",null,"決まっている",null,"はっきりしていない",null,"どうすればよいかわからない"]
["□これまで利用されていたサービスはありますか",null,"ある（現在活用している）",null,"ある（現在活用していない)",null,"ない"]
["□これまでにサービス利用をされていた場合\n　 具体的に利用されていたサービス",null,"デイケア・院外作業  ","担当者（　　　　　　　　　　　　　　）",null,null,"※デイサービス・ショートステイ・救護施設・ケアマネージャーなどその他利用されていたサービス"]
[null,null,"地域生活支援センター                          ","担当者（　　　　　　　　　　　　　　）"]
[null,null,"地域生活支援相談                             ","担当者（　　　　　　　　　　　　　　）"]
[null,null,"訪問看護                       ","担当者（　　　　　　　　　　　　　　）",null,null,"施設名（　　　　）担当者（　　　　）"]
[null,null,"ヘルパー                            ","担当者（　　　　　　　　　　　　　　）"]
[null,null,"保健所                             ","担当者（　　　　　　　　　　　　　　）"]
[null,null,"グループホーム                             ","担当者（　　　　　　　　　　　　　　）"]
[null,null,"市町村福祉・生活保護                            ","担当者（　　　　　　　　　　　　　　）"]
[null,null,"病院医療相談                           ","担当者（　　　　　　　　　　　　　　）"]
["□退院後利用を希望されるサービスはありますか",null,"ない（必要性なし）",null,"ある（調整不用）",null,"ある（調整必要）"]
["□具体的に利用を希望するサービス",null,"例）グループホーム に入居したい                            "]
[]
["□退院後お薬を忘れずに飲むことができますか",null,"できる",null,"できるが不安",null,"できない"]
["□退院後お薬の管理は誰が行ないますか",null,"自分（不安なし)",null,"家族などのサポート",null,"自分（不安あり・できない）"]
["□お薬を管理する訓練が必要ですか",null,"必要なし",null,"必要（協力者不用）",null,"必要（協力者必要）"]
["□お薬について確認したいことはありますか",null,"ない",null,"ある（主治医の説明）",null,"ある（薬剤師の説明）"]
["□退院先の調整が必要ですか",null,"必要なし（自宅・施設）",null,"必要（自宅・アパート・施設）",null,"必要（決まっていない）"]
["□馴染みのある退院先ですか？\n   退院後の生活イメージはありますか？",null,"必要なし",null,"必要（協力不用）",null,"必要（協力必要）"]
["□退院にむけて掃除や整理など自宅環境を整える必要がありますか",null,"必要なし",null,"必要（協力不用）",null,"必要（協力必要）"]
["□退院先地域での土地勘や買い物、公共サービス、\n   交通手段などに不安はありませんか？",null,"必要なし",null,"必要（協力不用）",null,"必要（協力必要）"]
["□生活する場所に布団や食器などの生活用品や日用品は\n   そろっていますか？",null,"必要なし",null,"必要（協力不用）",null,"必要（協力必要）"]
["□ご家族など身近な人との関係調整が必要ですか",null,"必要なし",null,"必要（協力不用）",null,"必要（協力必要）"]
["□ご家族など身近な人は病気について理解していますか",null,"理解している",null,"理解したが十分ではない",null,"理解できていない"]
["□ご家族など身近な人は症状への対応について理解していますか",null,"理解している",null,"理解したが十分ではない",null,"理解できていない"]
["□ご家族など身近な人は家族教室に参加されたことがありますか",null,"参加し理解している",null,"参加したが理解は不十分",null,"参加したことがない"]
["□退院にむけた外出・外泊に協力できる人はいますか",null,"いる（家族など）",null,"いない（自分でいける）",null,"いない（自分でいけない）"]
["□他者との対人関係における調整が必要ですか",null,"必要なし",null,"必要（協力不用）",null,"必要（協力必要）"]
["□他者との対人関係を良好に保つための訓練が必要ですか",null,"必要なし",null,"必要（協力不用）",null,"必要（協力必要）"]
["□退院先での対人関係に不安はありませんか？",null,"ない",null,"わからない",null,"不安がる"]
["□退院後の食生活は自立されていますか",null,"自分で食べれる",null,"介助が必要",null,"食べれない"]
["□退院後の食事は主に誰が準備しますか",null,"自炊",null,"家族・外食・弁当",null,"準備ができない"]
["□退院にむけて自炊のための料理訓練が必要ですか",null,"必要なし",null,"必要（協力不用）",null,"必要（協力必要）"]
["□退院後の生活のために過食・肥満・糖尿病・高血圧症など身体疾患に\n   関する栄養指導が必要ですか",null,"身体疾患がない",null,"身体疾患はあるが栄養管理ができている",null,"栄養指導が必要"]
["□洗面・入浴・洗濯・掃除などの清潔行動は保てていますか",null,"保てている",null,"手伝いがあればできる",null,"保てていない"]
["□退院後の生活先での入浴、洗濯、ゴミ出しなどに不安は\n    ありませんか？",null,"できている",null,"家族が行なう",null,"できていない"]
["□退院先の地域などに不安はありませんか？",null,"ない",null,"わからない",null,"不安がある"]
["□退院先地域に手助けをしてくれる人はいますか？",null,"地域に支援者がいる",null,"わからない",null,"地域で孤立している"]
["□退院後、日中の過ごし方は決まっていますか",null,"決まっている（通所あり）",null,"決まっている（通所なし）",null,"決まっていない"]
["□退院後の施設利用（デイケア・地域生活支援センター・就労支援施設・\n    グループホームなど）見学が必要ですか",null,"必要なし",null,"必要（協力不用）",null,"必要（協力必要）"]
["□退院後の生活費の問題はありますか",null,"ない",null,"わからない",null,"ある"]
["□障害年金や生活保護などを受けていますか",null,"受けている（生保・障害年金）",null,"わからない",null,"受けていない"]
["□障害年金や生活保護の情報提供を希望されますか",null,"希望する",null,"わからない",null,"希望しない"]
["□お金の使い方はうまくできていますか",null,"できている",null,"サポートが必要",null,"できていない"]
["□退院後のお金の管理は誰が行ないますか",null,"自分で管理",null,"家族が管理",null,"管理できない"]
["□その他、気になることや確認したいことがあれば記載してください"]

{"sheet":"手書き用シート","index":2,"n_rows":59,"n_cols":10,"rows_kept":59,"cut":false,"hidden":false,"merged":[[2,1,3,7],[4,2,4,7],[14,1,15,1],[14,4,14,6],[14,7,16,7],[15,4,15,6],[16,4,16,6],[43,8,46,8],[5,8,8,8],[9,8,12,8],[13,8,25,8],[24,3,25,7],[17,4,17,6],[17,7,22,7],[18,4,18,6],[19,4,19,6],[20,4,20,6],[21,4,21,6],[22,4,22,6],[4,8,4,9],[26,8,29,8],[30,8,34,8],[35,8,39,8],[40,8,42,8],[58,2,58,9],[47,8,48,8],[49,8,50,8],[51,8,52,8],[53,8,57,8]]}
[null,"退院支援アセスメントチェックシート",null,"　　　　　　　　　　　様　",null,"ご本人　・　ご家族",null,"年　　　月　　　日"]
[null,null,null,null,null,"（聴取者）"]
[null,"以下の質問への解答にご協力をお願いいたします\n患者様・ご家族のニーズをしっかりと把握した上で退院後の生活に向けた具体的支援の参考にさせていただきます"]
[]
[null,"項目","チェックもしくは具体的な記載をお願いいたします",null,null,null,null,null,"退院支援スクリーニング項目"]
[null,"□病気や症状について主治医から説明を受けていますか",null,"受けている",null,"受けたが十分理解していない",null,"受けていない","疾患管理","病気や治療についての理解度・受け入れの確認と援助"]
[null,"□過去に病気について心理教育を受けたことがありますか",null,"受けたことがある",null,"あるが十分理解していない",null,"受けたことがない",null,"心理教育"]
[null,"□病気の治療や副作用などについて理解されていますか",null,"理解している",null,"理解したが十分ではない",null,"理解できていない",null,"病気の治療、副作用についての説明・指導"]
[null,"□症状が出現した場合の対処方法は理解されていますか",null,"理解している",null,"理解したが十分ではない",null,"理解できていない",null,"症状への対処説明・指導"]
[null,"□過去に危機管理プランを作成したことがありますか\n　　（クライシスプラン・元気回復プラン・ハッピーライフプランなど）",null,"ある（活用している）",null,"ある（活用していない）",null,"作成したことがない","相談・緊急時の対処","クライシスプランの作成、修正"]
[null,"□病気の調子が悪い時の対処方法は決まっていますか",null,"決まっている（効果あり）",null,"決まっている（少ない効果）",null,"どうすればよいかわからない",null,"状態悪化時の対処方法指導"]
[null,"□病気の症状で困った時の相談窓口は決まっていますか",null,"決まっている",null,"はっきりしていない",null,"どうすればよいかわからない",null,"相談先の確認と相談方法の指導"]
[null,"□急激に調子を崩した時の緊急連絡先は決まっていますか",null,"決まっている",null,"はっきりしていない",null,"どうすればよいかわからない",null,"緊急連絡先の設定と練習"]
[null,"□これまで利用されていたサービスはありますか",null,"ある（現在活用している）",null,"ある（現在活用していない)",null,"ない","サービス","以前サービスを利用していたが現在はなし"]
[null,"□これまでにサービス利用をされていた場合\n　 具体的に利用されていたサービス",null,"デイケア・院外作業  ","担当者（　　　　　　　　　　　　　　）",null,null,"※デイサービス・ショートステイ・救護施設・ケアマネージャーなどその他利用されていたサービス",null,"デイケア・院外作業  "]
[null,null,null,"地域生活支援センター                          ","担当者（　　　　　　　　　　　　　　）",null,null,null,null,"地域生活支援センター                          "]
[null,null,null,"地域生活支援相談                             ","担当者（　　　　　　　　　　　　　　）",null,null,null,null,"地域生活支援相談                             "]
[null,null,null,"訪問看護                       ","担当者（　　　　　　　　　　　　　　）",null,null,"施設名（　　　　）担当者（　　　　）",null,"訪問看護                       "]
[null,null,null,"ヘルパー                            ","担当者（　　　　　　　　　　　　　　）",null,null,null,null,"ヘルパー                            "]
[null,null,null,"保健所                             ","担当者（　　　　　　　　　　　　　　）",null,null,null,null,"保健所                             "]
[null,null,null,"グループホーム                             ","担当者（　　　　　　　　　　　　　　）",null,null,null,null,"グループホーム                             "]
[null,null,null,"市町村福祉・生活保護                            ","担当者（　　　　　　　　　　　　　　）",null,null,null,null,"市町村福祉・生活保護                            "]
[null,null,null,"病院医療相談                           ","担当者（　　　　　　　　　　　　　　）",null,null,null,null,"病院医療相談                           "]
[null,"□退院後利用を希望されるサービスはありますか",null,"ない（必要性なし）",null,"ある（調整不用）",null,"ある（調整必要）",null,"サービス利用手続きの相談"]
[null,"□具体的に利用を希望するサービス",null,"例）グループホーム に入居したい                            "]
[]
[null,"□退院後お薬を忘れずに飲むことができますか",null,"できる",null,"できるが不安",null,"できない","服薬","服薬自己管理に不安がある"]
[null,"□退院後お薬の管理は誰が行ないますか",null,"自分（不安なし)",null,"家族などのサポート",null,"自分（不安あり・できない）",null,"家族などのサポートで服薬管理"]
[null,"□お薬を管理する訓練が必要ですか",null,"必要なし",null,"必要（協力者不用）",null,"必要（協力者必要）",null,"服薬自己管理訓練"]
[null,"□お薬について確認したいことはありますか",null,"ない",null,"ある（主治医の説明）",null,"ある（薬剤師の説明）",null,"主治医から薬剤説明希望"]
[null,"□退院先の調整が必要ですか",null,"必要なし（自宅・施設）",null,"必要（自宅・アパート・施設）",null,"必要（決まっていない）","住居","退院先の意向決定"]
[null,"□馴染みのある退院先ですか？\n   退院後の生活イメージはありますか？",null,"必要なし",null,"必要（協力不用）",null,"必要（協力必要）",null,"退院先についてのイメージ作り"]
[null,"□退院にむけて掃除や整理など自宅環境を整える必要がありますか",null,"必要なし",null,"必要（協力不用）",null,"必要（協力必要）",null,"退院先確保の準備"]
[null,"□退院先地域での土地勘や買い物、公共サービス、\n   交通手段などに不安はありませんか？",null,"必要なし",null,"必要（協力不用）",null,"必要（協力必要）",null,"ライフラインの利用練習"]
[null,"□生活する場所に布団や食器などの生活用品や\n   日用品はそろっていますか？",null,"必要なし",null,"必要（協力不用）",null,"必要（協力必要）",null,"生活用品の準備"]
[null,"□ご家族など身近な人との関係調整が必要ですか",null,"必要なし",null,"必要（協力不用）",null,"必要（協力必要）","家族調整","本人・家族との関係調整"]
[null,"□ご家族など身近な人は病気について理解していますか",null,"理解している",null,"理解したが十分ではない",null,"理解できていない",null,"疾病教育（病気に対する理解、）"]
[null,"□ご家族など身近な人は症状への対応について理解していますか",null,"理解している",null,"理解したが十分ではない",null,"理解できていない",null,"疾病教育（症状に対する理解、対応など）"]
[null,"□ご家族など身近な人は家族教室に参加されたことがありますか",null,"参加し理解している",null,"参加したが理解は不十分",null,"参加したことがない",null,"情報提供（家族教室、相談先など）"]
[null,"□退院にむけた外出・外泊に協力できる人はいますか",null,"いる（家族など）",null,"いない（自分でいける）",null,"いない（自分でいけない）",null,"外出泊の援助"]
[null,"□他者との対人関係における調整が必要ですか",null,"必要なし",null,"必要（協力不用）",null,"必要（協力必要）","対人関係","対人関係指導"]
[null,"□他者との対人関係を良好に保つための訓練が必要ですか",null,"必要なし",null,"必要（協力不用）",null,"必要（協力必要）",null,"SST"]
[null,"□退院先での対人関係に不安はありませんか？",null,"ない",null,"わからない",null,"不安がる",null,"退院先での活動・交流の場でのイメージ作り"]
[null,"□退院後の食生活は自立されていますか",null,"自分で食べれる",null,"介助が必要",null,"食べれない","食事","退院後の食事調達先の確認と調整"]
[null,"□退院後の食事は主に誰が準備しますか",null,"自炊",null,"家族・外食・弁当",null,"準備ができない",null,"可能な食事調達方法の利用指導"]
[null,"□退院にむけて自炊のための料理訓練が必要ですか",null,"必要なし",null,"必要（協力不用）",null,"必要（協力必要）",null,"料理グループ"]
[null,"□退院後の生活のために過食・肥満・糖尿病・高血圧症など\n    身体疾患に関する栄養指導が必要ですか",null,"身体疾患がない",null,"身体疾患はあるが栄養管理ができている",null,"栄養指導が必要",null,"栄養指導"]
[null,"□洗面・入浴・洗濯・掃除などの清潔行動は保てていますか",null,"保てている",null,"手伝いがあればできる",null,"保てていない","清潔","清潔行動の指導（入浴、洗面、洗濯、清掃、ゴミ出しなど）"]
[null,"□退院後の生活先での入浴、洗濯、ゴミ出しなどに\n   不安はありませんか？",null,"できている",null,"家族が行なう",null,"できていない",null,"退院先での清潔行動のイメージ作り"]
[null,"□退院先の地域などに不安はありませんか？",null,"ない",null,"わからない",null,"不安がある","地域","地域受け入れ状況の確認と調整"]
[null,"□退院先地域に手助けをしてくれる人はいますか？",null,"地域に支援者がいる",null,"わからない",null,"地域で孤立している",null,"インフォーマルな支援の確認"]
[null,"□退院後、日中の過ごし方は決まっていますか",null,"決まっている（通所あり）",null,"決まっている（通所なし）",null,"決まっていない","活動・就労","一日の過ごし方の確認と指導"]
[null,"□退院後の施設利用（デイケア・地域生活支援センター・就労支援施設・\n　　グループホームなど）見学が必要ですか",null,"必要なし",null,"必要（協力不用）",null,"必要（協力必要）",null,"活動・就労に関する情報提供"]
[null,"□退院後の生活費の問題はありますか",null,"ない",null,"わからない",null,"ある","経済","退院後の生活費試算・イメージ作り"]
[null,"□障害年金や生活保護などを受けていますか",null,"受けている（生保・障害年金）",null,"わからない",null,"受けていない",null,"生活保護・年金受給"]
[null,"□障害年金や生活保護の情報提供を希望されますか",null,"希望する",null,"わからない",null,"希望しない",null,"障害年金、生活保護などの情報提供"]
[null,"□お金の使い方はうまくできていますか",null,"できている",null,"サポートが必要",null,"できていない",null,"金銭管理にサポートが必要"]
[null,"□退院後のお金の管理は誰が行ないますか",null,"自分で管理",null,"家族が管理",null,"管理できない",null,"家族などのサポートで金銭管理"]
[null,"□その他、気になることや確認したいことがあれば記載してください"]

{"sheet":"入力用","index":3,"n_rows":60,"n_cols":14,"rows_kept":60,"cut":false,"hidden":false,"merged":[[2,1,3,7],[14,1,15,1],[14,7,16,7],[59,3,59,7],[4,2,4,7],[20,4,20,6],[21,4,21,6],[22,4,22,6],[17,7,22,7],[24,3,25,7],[58,2,58,7],[4,9,4,10],[4,11,4,13],[24,9,25,9],[23,12,25,12],[14,4,14,6],[15,4,15,6],[16,4,16,6],[17,4,17,6],[18,4,18,6],[19,4,19,6]]}
[null,"退院支援アセスメントスクリーニングシート",null,"　　　　　　　　　　　様　",null,null,null,"年　　　月　　　日"]
[]
[null,"以下の質問への解答にご協力をお願いいたします\n患者様・ご家族のニーズをしっかりと把握した上で退院後の生活に向けた具体的支援の参考にさせていただきます"]
[]
[null,"項目","チェックもしくは具体的な記載をお願いいたします",null,null,null,null,null,"チェック判定","退院支援スクリーニング項目",null,"スクリーニング項目データ"]
[null,"□病気や症状について主治医から説明を受けていますか",null,"受けている",null,"受けたが十分理解していない",null,"受けていない",2,{"$f":"IF(I6>=2,$N6,\"\")","v":"病気や治療についての理解度・受け入れの確認と援助"},null,"疾患管理",1,"病気や治療についての理解度・受け入れの確認と援助"]
[null,"□過去に病気について心理教育を受けたことがありますか",null,"受けたことがある",null,"あるが十分理解していない",null,"受けたことがない",2,"心理教育",null,null,2,"心理教育"]
[null,"□病気の治療や副作用などについて理解されていますか",null,"理解している",null,"理解したが十分ではない",null,"理解できていない",2,"病気の治療、副作用についての説明・指導",null,null,3,"病気の治療、副作用についての説明・指導"]
[null,"□症状が出現した場合の対処方法は理解されていますか",null,"理解している",null,"理解したが十分ではない",null,"理解できていない",2,"症状への対処説明・指導",null,null,4,"症状への対処説明・指導"]
[null,"□過去に危機管理プランを作成したことがありますか\n　　（クライシスプラン・元気回復プラン・ハッピーライフプランなど）",null,"ある（活用している）",null,"ある（活用していない）",null,"作成したことがない",2,"クライシスプランの作成、修正",null,"相談・緊急時の対処",5,"クライシスプランの作成、修正"]
[null,"□病気の調子が悪い時の対処方法は決まっていますか",null,"決まっている（効果あり）",null,"決まっている（少ない効果）",null,"どうすればよいかわからない",2,"状態悪化時の対処方法指導",null,null,6,"状態悪化時の対処方法指導"]
[null,"□病気の症状で困った時の相談窓口は決まっていますか",null,"決まっている",null,"はっきりしていない",null,"どうすればよいかわからない",2,"相談先の確認と相談方法の指導",null,null,7,"相談先の確認と相談方法の指導"]
[null,"□急激に調子を崩した時の緊急連絡先は決まっていますか",null,"決まっている",null,"はっきりしていない",null,"どうすればよいかわからない",2,"緊急連絡先の設定と練習",null,null,8,"緊急連絡先の設定と練習"]
[null,"□これまで利用されていたサービスはありますか",null,"ある（現在活用している）",null,"ある（現在活用していない)",null,"ない",2,{"$f":"IF(I14=1,\"サービス利用あり\",IF(I14=2,\"以前サービスを利用していたが現在はなし\",\"サービスを利用したことがない\"))","v":"以前サービスを利用していたが現在はなし"},null,"サービス"]
[null,"□これまでにサービス利用をされていた場合\n　 具体的に利用されていたサービス",null,"デイケア・院外作業  ","担当者（　　　　　　　　　　　　　　）",null,null,"※デイサービス・ショートステイ・救護施設・ケアマネージャーなどその他利用されていたサービス",true,{"$f":"IF($I15,$D15,\"\")","v":"デイケア・院外作業  "},{"$f":"IF($I15,$E15,\"\")","v":"担当者（　　　　　　　　　　　　　　）"},null,null,"記入式"]
[null,null,null,"地域生活支援センター                          ","担当者（　　　　　　　　　　　　　　）",null,null,null,true,{"$f":"IF($I16,$D16,\"\")","v":"地域生活支援センター                          "},{"$f":"IF($I16,$E16,\"\")","v":"担当者（　　　　　　　　　　　　　　）"}]
[null,null,null,"地域生活支援相談                             ","担当者（　　　　　　　　　　　　　　）",null,null,null,true,"地域生活支援相談                             ","担当者（　　　　　　　　　　　　　　）"]
[null,null,null,"訪問看護                       ","担当者（　　　　　　　　　　　　　　）",null,null,"施設名（　　　　）担当者（　　　　）",true,"訪問看護                       ","担当者（　　　　　　　　　　　　　　）"]
[null,null,null,"ヘルパー                            ","担当者（　　　　　　　　　　　　　　）",null,null,null,true,"ヘルパー                            ","担当者（　　　　　　　　　　　　　　）"]
[null,null,null,"保健所                             ","担当者（　　　　　　　　　　　　　　）",null,null,null,true,"保健所                             ","担当者（　　　　　　　　　　　　　　）"]
[null,null,null,"グループホーム                             ","担当者（　　　　　　　　　　　　　　）",null,null,null,true,"グループホーム                             ","担当者（　　　　　　　　　　　　　　）"]
[null,null,null,"市町村福祉・生活保護                            ","担当者（　　　　　　　　　　　　　　）",null,null,null,true,"市町村福祉・生活保護                            ","担当者（　　　　　　　　　　　　　　）"]
[null,null,null,"病院医療相談                           ","担当者（　　　　　　　　　　　　　　）",null,null,null,true,"病院医療相談                           ","担当者（　　　　　　　　　　　　　　）"]
[null,"□退院後利用を希望されるサービスはありますか",null,"ない（必要性なし）",null,"ある（調整不用）",null,"ある（調整必要）",2,{"$f":"IF(I24>=2,$N24,\"\")","v":"サービス利用手続きの相談"},{"$f":"IF($I60,$H18,\"\")","v":"施設名（　　　　）担当者（　　　　）"},null,9,"サービス利用手続きの相談"]
[null,"□具体的に利用を希望するサービス",null,null,null,null,null,null,null,{"$f":"IF(I24>=2,$D25,\"\")","v":0},null,null,null,"福祉・医療サービスについての情報提供・利用イメージ作り・相談"]
[null,null,null,null,null,null,null,null,null,null,null,null,null,"サービス利用にあたっての地域スタッフへの情報提供（ケア会議、連携手帳など）"]
[null,"□退院後お薬を忘れずに飲むことができますか",null,"できる",null,"できるが不安",null,"できない",2,{"$f":"IF(I27>=2,\"服薬自己管理に不安がある\",\"\")","v":"服薬自己管理に不安がある"},null,"服薬",10,"服薬自己管理訓練"]
[null,"□退院後お薬の管理は誰が行ないますか",null,"自分（不安なし)",null,"家族などのサポート",null,"自分（不安あり・できない）",2,{"$f":"IF(I28=2,\"家族などのサポートで服薬管理\",\"自分で服薬管理\")","v":"家族などのサポートで服薬管理"},null,null,11,"＜記入式＞"]
[null,"□お薬を管理する訓練が必要ですか",null,"必要なし",null,"必要（協力者不用）",null,"必要（協力者必要）",2,{"$f":"IF(I29>=2,$N27,\"\")","v":"服薬自己管理訓練"},null,null,13,"薬剤情報提供・指導"]
[null,"□お薬について確認したいことはありますか",null,"ない",null,"ある（主治医の説明）",null,"ある（薬剤師の説明）",2,{"$f":"IF(I30=2,\"主治医から薬剤説明希望\",IF(I30=3,\"薬剤師から説明希望\",\"\"))","v":"主治医から薬剤説明希望"}]
[null,"□退院先の調整が必要ですか",null,"必要なし（自宅・施設）",null,"必要（自宅・アパート・施設）",null,"必要（決まっていない）",2,{"$f":"IF(I31>=2,$N31,\"\")","v":"退院先の意向決定"},null,"住居",14,"退院先の意向決定"]
[null,"□馴染みのある退院先ですか？\n   退院後の生活イメージはありますか？",null,"必要なし",null,"必要（協力不用）",null,"必要（協力必要）",2,"退院先についてのイメージ作り",null,null,15,"退院先についてのイメージ作り"]
[null,"□退院にむけて掃除や整理など自宅環境を整える必要がありますか",null,"必要なし",null,"必要（協力不用）",null,"必要（協力必要）",2,"退院先確保の準備",null,null,16,"退院先確保の準備"]
[null,"□退院先地域での土地勘や買い物、公共サービス、交通手段などに\n    不安はありませんか？",null,"必要なし",null,"必要（協力不用）",null,"必要（協力必要）",2,"ライフラインの利用練習",null,null,17,"ライフラインの利用練習"]
[null,"□生活する場所に布団や食器などの生活用品や日用品は\n   そろっていますか？",null,"必要なし",null,"必要（協力不用）",null,"必要（協力必要）",2,"生活用品の準備",null,null,18,"生活用品の準備"]
[null,"□ご家族など身近な人との関係調整が必要ですか",null,"必要なし",null,"必要（協力不用）",null,"必要（協力必要）",2,"本人・家族との関係調整",null,"家族調整",19,"本人・家族との関係調整"]
[null,"□ご家族など身近な人は病気について理解していますか",null,"理解している",null,"理解したが十分ではない",null,"理解できていない",2,"疾病教育（病気に対する理解、）",null,null,20,"疾病教育（病気に対する理解、）"]
[null,"□ご家族など身近な人は症状への対応について理解していますか",null,"理解している",null,"理解したが十分ではない",null,"理解できていない",2,"疾病教育（症状に対する理解、対応など）",null,null,null,"疾病教育（症状に対する理解、対応など）"]
[null,"□ご家族など身近な人は家族教室に参加されたことがありますか",null,"参加し理解している",null,"参加したが理解は不十分",null,"参加したことがない",2,"情報提供（家族教室、相談先など）",null,null,21,"情報提供（家族教室、相談先など）"]
[null,"□退院にむけた外出・外泊に協力できる人はいますか",null,"いる（家族など）",null,"いない（自分でいける）",null,"いない（自分でいけない）",2,"外出泊の援助",null,null,22,"外出泊の援助"]
[null,"□他者との対人関係における調整が必要ですか",null,"必要なし",null,"必要（協力不用）",null,"必要（協力必要）",2,"対人関係指導",null,"対人関係",23,"対人関係指導"]
[null,"□他者との対人関係を良好に保つための訓練が必要ですか",null,"必要なし",null,"必要（協力不用）",null,"必要（協力必要）",3,"SST",null,null,24,"SST"]
[null,"□退院先での対人関係に不安はありませんか？",null,"ない",null,"わからない",null,"不安がる",2,"退院先での活動・交流の場でのイメージ作り",null,null,25,"退院先での活動・交流の場でのイメージ作り"]
[null,"□退院後の食生活は自立されていますか",null,"自分で食べれる",null,"介助が必要",null,"食べれない",2,"退院後の食事調達先の確認と調整",null,"食事",26,"退院後の食事調達先の確認と調整"]
[null,"□退院後の食事は主に誰が準備しますか",null,"自炊",null,"家族・外食・弁当",null,"準備ができない",2,"可能な食事調達方法の利用指導",null,null,27,"可能な食事調達方法の利用指導"]
[null,"□退院にむけて自炊のための料理訓練が必要ですか",null,"必要なし",null,"必要（協力不用）",null,"必要（協力必要）",2,"料理グループ",null,null,28,"料理グループ"]
[null,"□退院後の生活のために過食・肥満・糖尿病・高血圧症など\n   身体疾患に関する栄養指導が必要ですか",null,"身体疾患がない",null,"身体疾患はあるが栄養管理ができている",null,"栄養指導が必要",2,"栄養指導",null,null,29,"栄養指導"]
[null,"□洗面・入浴・洗濯・掃除などの清潔行動は保てていますか",null,"保てている",null,"手伝いがあればできる",null,"保てていない",2,"清潔行動の指導（入浴、洗面、洗濯、清掃、ゴミ出しなど）",null,"清潔",30,"清潔行動の指導（入浴、洗面、洗濯、清掃、ゴミ出しなど）"]
[null,"□退院後の生活先での入浴、洗濯、ゴミ出などに不安はありませんか？",null,"できている",null,"家族が行なう",null,"できていない",2,"退院先での清潔行動のイメージ作り",null,null,31,"退院先での清潔行動のイメージ作り"]
[null,"□退院先の地域などに不安はありませんか？",null,"ない",null,"わからない",null,"不安がある",2,"地域受け入れ状況の確認と調整",null,"地域",32,"地域受け入れ状況の確認と調整"]
[null,"□退院先地域に手助けをしてくれる人はいますか？",null,"地域に支援者がいる",null,"わからない",null,"地域で孤立している",2,"インフォーマルな支援の確認",null,null,33,"インフォーマルな支援の確認"]
[null,"□退院後、日中の過ごし方は決まっていますか",null,"決まっている（通所あり）",null,"決まっている（通所なし）",null,"決まっていない",2,{"$f":"IF(I52>=2,$N54,\"\")","v":"一日の過ごし方の確認と指導"},null,null,null,"その他"]
[null,"□退院後の施設利用（デイケア・地域生活支援センター・\n   就労支援施設・グループホームなど）見学が必要ですか",null,"必要なし",null,"必要（協力不用）",null,"必要（協力必要）",2,{"$f":"IF(I53>=2,$N53,\"\")","v":"活動・就労に関する情報提供"},null,"活動・就労",34,"活動・就労に関する情報提供"]
[null,"□退院後の生活費の問題はありますか",null,"ない",null,"わからない",null,"ある",2,{"$f":"IF(I54>=2,$N55,\"\")","v":"退院後の生活費試算・イメージ作り"},null,null,35,"一日の過ごし方の確認と指導"]
[null,"□障害年金や生活保護などを受けていますか",null,"受けている（生保・障害年金）",null,"わからない",null,"受けていない",2,{"$f":"IF(I55=1,\"生活保護・年金受給\",IF(I55=2,\"生活保護・年金など受給状況不明\",\"年金・生保なし\"))","v":"生活保護・年金など受給状況不明"},null,"経済",36,"退院後の生活費試算・イメージ作り"]
[null,"□障害年金や生活保護の情報提供を希望されますか",null,"希望する",null,"わからない",null,"希望しない",2,{"$f":"IF(I56<=2,$N57,\"\")","v":"障害年金、生活保護などの情報提供"},null,null,37]
[null,"□お金の使い方はうまくできていますか",null,"できている",null,"サポートが必要",null,"できていない",2,{"$f":"IF(I57>=2,\"金銭管理にサポートが必要\",\"\")","v":"金銭管理にサポートが必要"},null,null,38,"障害年金、生活保護などの情報提供"]
[null,"□退院後のお金の管理は誰が行ないますか",null,"自分で管理",null,"家族が管理",null,"管理できない",2,{"$f":"IF(I58=1,\"金銭自己管理で問題なし\",IF(I58=2,\"家族などのサポートで金銭管理\",\"サポート者がおらず管理にも不安がある\"))","v":"家族などのサポートで金銭管理"},null,null,39,"金銭管理自己訓練"]
[null,"□その他、気になることや確認したいことがあれば記載してください",null,null,null,null,null,null,null,null,null,null,null,"その他"]
[null,null,null,null,null,null,null,null,true,null,null,null,40,"＜記入式＞"]

{"sheet":"退院支援プラン","index":4,"n_rows":60,"n_cols":12,"rows_kept":60,"cut":false,"hidden":false,"merged":[[55,3,59,6],[49,0,49,2],[50,0,50,2],[51,0,51,2],[52,0,52,2],[53,0,53,2],[59,0,59,2],[54,0,54,2],[55,0,55,2],[56,0,56,2],[57,0,57,2],[58,0,58,2],[44,0,44,2],[45,0,45,2],[46,0,46,2],[47,0,47,2],[48,0,48,2],[34,0,34,2],[35,0,35,2],[36,0,36,2],[37,0,37,2],[38,0,38,2],[39,0,39,2],[40,0,40,2],[41,0,41,2],[42,0,42,2],[43,0,43,2],[26,0,26,2],[27,0,27,2],[28,0,28,2],[24,1,24,2],[25,0,25,2],[29,0,29,2],[30,0,30,2],[31,0,31,2],[32,0,32,2],[33,0,33,2],[19,1,19,2],[20,1,20,2],[21,1,21,2],[22,1,22,2],[23,1,23,2],[16,1,16,2],[17,1,17,2],[18,1,18,2],[6,7,6,10],[7,0,7,2],[8,0,8,2],[9,0,9,2],[10,0,10,2],[11,0,11,2],[12,0,12,2],[13,0,13,2],[14,0,14,2],[15,0,15,2],[15,3,27,6],[7,7,10,10],[11,7,14,10],[28,3,31,6],[32,3,36,6],[37,3,41,6],[42,3,44,6],[53,3,54,6],[45,3,48,6],[49,3,50,6],[51,3,52,6],[55,7,59,10],[15,7,27,10],[28,7,31,10],[32,7,36,10],[37,7,41,10],[42,7,44,10],[11,3,14,6],[51,11,52,11],[53,11,54,11],[55,11,59,11],[11,11,14,11],[15,11,27,11],[28,11,31,11],[32,11,36,11],[37,11,41,11],[42,11,44,11],[45,11,48,11],[49,11,50,11],[45,7,48,10],[49,7,50,10],[51,7,52,10],[53,7,54,10],[0,0,1,1],[0,3,1,6],[0,7,1,9],[2,8,2,9],[7,11,10,11],[7,3,10,6],[2,2,2,3],[2,5,2,6],[3,2,3,3],[6,0,6,2],[6,3,6,6],[5,4,5,5]]}
["様",null,null,"退院支援プラン",null,null,null,"年　　月　　日作成"]
[]
["入院日","(             )",null,null,"診断名","(                       )　　",null,"診断コード","(Ｆ        )"]
["□キーパーソン　　　　　　　　　　　　　","(                )","　(続柄：　　　　　　　)",null,"□主治医","(              )","□看護師","(                )"]
["□精神保健福祉士","(                )","□作業療法士　　","(              )","□薬剤師","(              )","□栄養士","(                )"]
["□相談支援専門員","(                )","□保健師","(              )","□市町村福祉・その他",null,"(                )","(                )","□施設","(              )","(              )"]
["退院支援項目",null,null,"退院に向けた目標",null,null,null,"支援計画",null,null,null,"達成日"]
[{"$f":"入力用!$J6","v":"病気や治療についての理解度・受け入れの確認と援助"}]
[{"$f":"入力用!$J7","v":"心理教育"}]
[{"$f":"入力用!$J8","v":"病気の治療、副作用についての説明・指導"}]
[{"$f":"入力用!$J9","v":"症状への対処説明・指導"}]
[{"$f":"入力用!$J10","v":"クライシスプランの作成、修正"}]
[{"$f":"入力用!$J11","v":"状態悪化時の対処方法指導"}]
[{"$f":"入力用!$J12","v":"相談先の確認と相談方法の指導"}]
[{"$f":"入力用!$J13","v":"緊急連絡先の設定と練習"}]
[{"$f":"入力用!$J14","v":"以前サービスを利用していたが現在はなし"}]
[{"$f":"入力用!$J15","v":"デイケア・院外作業  "},{"$f":"入力用!K15","v":"担当者（　　　　　　　　　　　　　　）"}]
[{"$f":"入力用!$J16","v":"地域生活支援センター                          "},{"$f":"入力用!K16","v":"担当者（　　　　　　　　　　　　　　）"}]
[{"$f":"入力用!$J17","v":"地域生活支援相談                             "},{"$f":"入力用!K17","v":"担当者（　　　　　　　　　　　　　　）"}]
[{"$f":"入力用!$J18","v":"訪問看護                       "},{"$f":"入力用!K18","v":"担当者（　　　　　　　　　　　　　　）"}]
[{"$f":"入力用!$J19","v":"ヘルパー                            "},{"$f":"入力用!K19","v":"担当者（　　　　　　　　　　　　　　）"}]
[{"$f":"入力用!$J20","v":"保健所                             "},{"$f":"入力用!K20","v":"担当者（　　　　　　　　　　　　　　）"}]
[{"$f":"入力用!$J21","v":"グループホーム                             "},{"$f":"入力用!K21","v":"担当者（　　　　　　　　　　　　　　）"}]
[{"$f":"入力用!$J22","v":"市町村福祉・生活保護                            "},{"$f":"入力用!K22","v":"担当者（　　　　　　　　　　　　　　）"}]
[{"$f":"入力用!$J23","v":"病院医療相談                           "},{"$f":"入力用!K23","v":"担当者（　　　　　　　　　　　　　　）"}]
[{"$f":"入力用!K24","v":"施設名（　　　　）担当者（　　　　）"}]
[{"$f":"入力用!$J24","v":"サービス利用手続きの相談"}]
[{"$f":"入力用!$J25","v":0}]
[{"$f":"入力用!$J27","v":"服薬自己管理に不安がある"}]
[{"$f":"入力用!$J28","v":"家族などのサポートで服薬管理"}]
[{"$f":"入力用!$J29","v":"服薬自己管理訓練"}]
[{"$f":"入力用!$J30","v":"主治医から薬剤説明希望"}]
[{"$f":"入力用!$J31","v":"退院先の意向決定"}]
[{"$f":"入力用!$J32","v":"退院先についてのイメージ作り"}]
[{"$f":"入力用!$J33","v":"退院先確保の準備"}]
[{"$f":"入力用!$J34","v":"ライフラインの利用練習"}]
[{"$f":"入力用!$J35","v":"生活用品の準備"}]
[{"$f":"入力用!$J36","v":"本人・家族との関係調整"}]
[{"$f":"入力用!$J37","v":"疾病教育（病気に対する理解、）"}]
[{"$f":"入力用!$J38","v":"疾病教育（症状に対する理解、対応など）"}]
[{"$f":"入力用!$J39","v":"情報提供（家族教室、相談先など）"}]
[{"$f":"入力用!$J40","v":"外出泊の援助"}]
[{"$f":"入力用!$J41","v":"対人関係指導"}]
[{"$f":"入力用!$J42","v":"SST"}]
[{"$f":"入力用!$J43","v":"退院先での活動・交流の場でのイメージ作り"}]
[{"$f":"入力用!$J44","v":"退院後の食事調達先の確認と調整"}]
[{"$f":"入力用!$J45","v":"可能な食事調達方法の利用指導"}]
[{"$f":"入力用!$J46","v":"料理グループ"}]
[{"$f":"入力用!$J47","v":"栄養指導"}]
[{"$f":"入力用!$J48","v":"清潔行動の指導（入浴、洗面、洗濯、清掃、ゴミ出しなど）"}]
[{"$f":"入力用!$J49","v":"退院先での清潔行動のイメージ作り"}]
[{"$f":"入力用!$J50","v":"地域受け入れ状況の確認と調整"}]
[{"$f":"入力用!$J51","v":"インフォーマルな支援の確認"}]
[{"$f":"入力用!$J52","v":"一日の過ごし方の確認と指導"}]
[{"$f":"入力用!$J53","v":"活動・就労に関する情報提供"}]
[{"$f":"入力用!$J54","v":"退院後の生活費試算・イメージ作り"}]
[{"$f":"入力用!$J55","v":"生活保護・年金など受給状況不明"}]
[{"$f":"入力用!$J56","v":"障害年金、生活保護などの情報提供"}]
[{"$f":"入力用!$J57","v":"金銭管理にサポートが必要"}]
[{"$f":"入力用!$J58","v":"家族などのサポートで金銭管理"}]

{"sheet":"ケアプラン","index":5,"n_rows":32,"n_cols":44,"rows_kept":32,"cut":false,"hidden":false,"merged":[[0,0,0,7],[0,27,0,30],[0,31,0,32],[2,2,2,9],[2,11,2,12],[2,13,2,19],[2,22,2,24],[2,25,2,27],[4,31,4,35],[5,3,5,7],[5,8,5,12],[5,13,5,16],[5,17,5,21],[5,22,5,24],[5,25,5,29],[5,30,5,32],[5,33,5,37],[4,8,4,12],[4,13,4,14],[4,15,4,16],[4,19,4,21],[4,22,4,26],[4,28,4,30],[6,30,6,32],[6,33,6,37],[8,0,8,4],[8,5,8,16],[8,17,8,34],[8,35,8,38],[6,3,6,7],[6,8,6,12],[6,13,6,16],[6,17,6,21],[6,22,6,24],[6,25,6,29],[9,0,9,4],[9,5,9,16],[9,17,9,34],[9,35,9,36],[9,37,9,38],[10,0,10,4],[10,5,10,16],[10,17,10,34],[10,35,10,36],[10,37,10,38],[11,0,11,4],[11,5,11,16],[11,17,11,34],[11,35,11,36],[11,37,11,38],[12,0,12,4],[12,5,12,16],[12,17,12,34],[12,35,12,36],[12,37,12,38],[13,0,13,4],[13,5,13,16],[13,17,13,34],[13,35,13,36],[13,37,13,38],[14,0,14,4],[14,5,14,16],[14,17,14,34],[14,35,14,36],[14,37,14,38],[15,0,15,4],[15,5,15,16],[15,17,15,34],[15,35,15,36],[15,37,15,38],[16,0,16,4],[16,5,16,16],[16,17,16,34],[16,35,16,36],[16,37,16,38],[17,0,17,4],[17,5,17,16],[17,17,17,34],[17,35,17,36],[17,37,17,38],[18,0,18,4],[18,5,18,16],[18,17,18,34],[18,35,18,36],[18,37,18,38],[21,0,21,4],[21,5,21,16],[21,17,21,34],[21,35,21,36],[21,37,21,38],[22,0,22,4],[22,5,22,38],[19,0,19,4],[19,5,19,16],[19,17,19,34],[19,35,19,36],[19,37,19,38],[20,0,20,4],[20,5,20,16],[20,17,20,34],[20,35,20,36],[20,37,20,38]]}
[null,null,null,null,null,null,null,null,"様　",null,null,"ケアプラン",null,null,null,null,null,null,null,null,null,null,null,null,null,null,null,"計画立案日",null,null,null,null,null,"年",null,"月",null,"日",null,null,null,null,2016,1]
[null,null,null,null,null,null,null,null,null,null,null,null,null,null,null,null,null,null,null,null,null,null,null,null,null,null,null,null,null,null,null,null,null,null,null,null,null,null,null,null,null,null,2017,2]
["入院日",null,null,null,null,null,null,null,null,null,null,"診断名",null,null,null,null,null,null,null,null,null,null,"診断コード",null,null,null,null,null,null,null,null,null,null,null,null,null,null,null,null,null,null,null,2018,3]
[null,null,null,null,null,null,null,null,null,null,null,null,null,null,null,null,null,null,null,null,null,null,null,null,null,null,null,null,null,null,null,null,null,null,null,null,null,null,null,null,null,null,2019,4]
["担当者",null,null,"□キーパーソン",null,null,null,null,null,null,null,null,null,"続柄：　",null,null,null,null,null,"□主治医",null,null,null,null,null,null,null,null,"□看護師",null,null,null,null,null,null,null,null,null,null,null,null,null,2020,5]
[null,null,null,"□精神保健福祉士",null,null,null,null,null,null,null,null,null,"□作業療法士",null,null,null,null,null,null,null,null,"□薬剤師",null,null,null,null,null,null,null,"□栄養士",null,null,null,null,null,null,null,null,null,null,null,2021,6]
[null,null,null,"□相談支援専門員",null,null,null,null,null,null,null,null,null,"□市町福祉",null,null,null,null,null,null,null,null,"□保健師",null,null,null,null,null,null,null,"□その他",null,null,null,null,null,null,null,null,null,null,null,2022,7]
[null,null,null,null,null,null,null,null,null,null,null,null,null,null,null,null,null,null,null,null,null,null,null,null,null,null,null,null,null,null,null,null,null,null,null,null,null,null,null,null,null,null,2023,8]
["退院支援項目",null,null,null,null,"退院に向けた目標",null,null,null,null,null,null,null,null,null,null,null,"支援計画",null,null,null,null,null,null,null,null,null,null,null,null,null,null,null,null,null,"達成状況",null,null,null,null,null,null,2024,9]
["住居",null,null,null,null,{"$f":"退院支援プラン!D33","v":0},null,null,null,null,null,null,null,null,null,null,null,{"$f":"退院支援プラン!H33","v":0},null,null,null,null,null,null,null,null,null,null,null,null,null,null,null,null,null,"達成",null,"継続",null,null,null,null,2025,10]
["経済",null,null,null,null,{"$f":"退院支援プラン!D56","v":0},null,null,null,null,null,null,null,null,null,null,null,{"$f":"退院支援プラン!H56","v":0},null,null,null,null,null,null,null,null,null,null,null,null,null,null,null,null,null,"達成",null,"継続",null,null,null,null,2026,11]
["食事",null,null,null,null,{"$f":"退院支援プラン!D46","v":0},null,null,null,null,null,null,null,null,null,null,null,{"$f":"退院支援プラン!H46","v":0},null,null,null,null,null,null,null,null,null,null,null,null,null,null,null,null,null,"達成",null,"継続",null,null,null,null,2027,12]
["清潔",null,null,null,null,{"$f":"退院支援プラン!D50","v":0},null,null,null,null,null,null,null,null,null,null,null,{"$f":"退院支援プラン!H50","v":0},null,null,null,null,null,null,null,null,null,null,null,null,null,null,null,null,null,"達成",null,"継続",null,null,null,null,2028,13]
["家族調整",null,null,null,null,{"$f":"退院支援プラン!D38","v":0},null,null,null,null,null,null,null,null,null,null,null,{"$f":"退院支援プラン!H38","v":0},null,null,null,null,null,null,null,null,null,null,null,null,null,null,null,null,null,"達成",null,"継続",null,null,null,null,2029,14]
["地域",null,null,null,null,{"$f":"退院支援プラン!D52","v":0},null,null,null,null,null,null,null,null,null,null,null,{"$f":"退院支援プラン!H52","v":0},null,null,null,null,null,null,null,null,null,null,null,null,null,null,null,null,null,"達成",null,"継続",null,null,null,null,2030,15]
["対人関係",null,null,null,null,{"$f":"退院支援プラン!D43","v":0},null,null,null,null,null,null,null,null,null,null,null,{"$f":"退院支援プラン!H43","v":0},null,null,null,null,null,null,null,null,null,null,null,null,null,null,null,null,null,"達成",null,"継続",null,null,null,null,2031,16]
["サービス",null,null,null,null,{"$f":"退院支援プラン!D16","v":0},null,null,null,null,null,null,null,null,null,null,null,{"$f":"退院支援プラン!H16","v":0},null,null,null,null,null,null,null,null,null,null,null,null,null,null,null,null,null,"達成",null,"継続",null,null,null,null,2032,17]
["活動・就労",null,null,null,null,{"$f":"退院支援プラン!D54","v":0},null,null,null,null,null,null,null,null,null,null,null,{"$f":"退院支援プラン!H54","v":0},null,null,null,null,null,null,null,null,null,null,null,null,null,null,null,null,null,"達成",null,"継続",null,null,null,null,2033,18]
["相談・緊急時の対処",null,null,null,null,{"$f":"退院支援プラン!D12","v":0},null,null,null,null,null,null,null,null,null,null,null,{"$f":"退院支援プラン!H12","v":0},null,null,null,null,null,null,null,null,null,null,null,null,null,null,null,null,null,"達成",null,"継続",null,null,null,null,2034,19]
["疾患管理",null,null,null,null,{"$f":"退院支援プラン!D8","v":0},null,null,null,null,null,null,null,null,null,null,null,{"$f":"退院支援プラン!H8","v":0},null,null,null,null,null,null,null,null,null,null,null,null,null,null,null,null,null,"達成",null,"継続",null,null,null,null,2035,20]
["服薬",null,null,null,null,{"$f":"退院支援プラン!D29","v":0},null,null,null,null,null,null,null,null,null,null,null,{"$f":"退院支援プラン!H29","v":0},null,null,null,null,null,null,null,null,null,null,null,null,null,null,null,null,null,"達成",null,"継続"]
["その他",null,null,null,null,null,null,null,null,null,null,null,null,null,null,null,null,null,null,null,null,null,null,null,null,null,null,null,null,null,null,null,null,null,null,"達成",null,"継続",null,null,null,null,null,21]
["□　備考",null,null,null,null,null,null,null,null,null,null,null,null,null,null,null,null,null,null,null,null,null,null,null,null,null,null,null,null,null,null,null,null,null,null,null,null,null,null,null,null,null,null,22]
[null,null,null,null,null,null,null,null,null,null,null,null,null,null,null,null,null,null,null,null,null,null,null,null,null,null,null,null,null,null,null,null,null,null,null,null,null,null,null,null,null,null,null,23]
[null,null,null,null,null,null,null,null,null,null,null,null,null,null,null,null,null,null,null,null,null,null,null,null,null,null,null,null,null,null,null,null,null,null,null,null,null,null,null,null,null,null,null,24]
[null,null,null,null,null,null,null,null,null,null,null,null,null,null,null,null,null,null,null,null,null,null,null,null,null,null,null,null,null,null,null,null,null,null,null,null,null,null,null,null,null,null,null,25]
[null,null,null,null,null,null,null,null,null,null,null,null,null,null,null,null,null,null,null,null,null,null,null,null,null,null,null,null,null,null,null,null,null,null,null,null,null,null,null,null,null,null,null,26]
[null,null,null,null,null,null,null,null,null,null,null,null,null,null,null,null,null,null,null,null,null,null,null,null,null,null,null,null,null,null,null,null,null,null,null,null,null,null,null,null,null,null,null,27]
[null,null,null,null,null,null,null,null,null,null,null,null,null,null,null,null,null,null,null,null,null,null,null,null,null,null,null,null,null,null,null,null,null,null,null,null,null,null,null,null,null,null,null,28]
[null,null,null,null,null,null,null,null,null,null,null,null,null,null,null,null,null,null,null,null,null,null,null,null,null,null,null,null,null,null,null,null,null,null,null,null,null,null,null,null,null,null,null,29]
[null,null,null,null,null,null,null,null,null,null,null,null,null,null,null,null,null,null,null,null,null,null,null,null,null,null,null,null,null,null,null,null,null,null,null,null,null,null,null,null,null,null,null,30]
[null,null,null,null,null,null,null,null,null,null,null,null,null,null,null,null,null,null,null,null,null,null,null,null,null,null,null,null,null,null,null,null,null,null,null,null,null,null,null,null,null,null,null,31]